bitfinex/quotes_ETHUSD_20240916
["timestamp","ask_amount","ask_price","bid_price","bid_amount"]
[1726520042483,1.111988,2277.8,2277.5,8.78136]
[1726520042688,6.72953,2278.0,2277.6,4.39058]
[1726520042912,11.11952,2278.0,2277.6,4.39058]
[1726520043095,4.39005,2277.9,2277.5,4.39066]
[1726520043569,4.39042,2277.7,2277.3,3.97065142]
[1726520043770,7.39022,2277.8,2277.4,4.39088]
[1726520044372,3.0,2277.8,2277.5,4.3907]
[1726520044612,7.3902,2277.8,2277.4,4.39091]
[1726520045691,3.0,2277.8,2277.5,4.39075]
[1726520045892,4.39021,2277.8,2277.5,0.16498876]
[1726520046791,0.7841482,2277.9,2277.5,0.16498876]
[1726520046996,4.3901,2277.9,2277.5,6.80434]
[1726520047207,4.3901,2277.9,2277.6,0.16486274]
[1726520048816,2.2903,2278.2,2277.7,4.39037]
[1726520049053,4.38955,2278.2,2277.8,6.86410072]
[1726520049338,4.38962,2278.1,2277.8,0.16461072]
[1726520049851,4.38962,2278.1,2277.9,0.16448472]
[1726520050200,4.38962,2278.1,2277.7,4.39031]
[1726520050402,4.38962,2278.1,2277.8,0.16461072]
[1726520050713,4.38962,2278.1,2277.7,4.39031]
[1726520050912,4.38962,2278.1,2277.9,0.16448472]
[1726520051111,6.4212596,2278.1,2277.8,0.16461072]
[1726520051314,6.4212596,2278.1,2278.0,0.16435874]
[1726520051509,11.77962,2278.0,2277.9,0.16448472]
[1726520051738,11.77962,2278.0,2277.3,4.39116]
[1726520051739,4.39048,2277.7,2277.3,4.39116]
[1726520051939,4.39048,2277.7,2277.3,8.78218]
[1726520051940,5.268563,2277.7,2277.3,8.78218]
[1726520052238,4.39048,2277.7,2277.3,8.78218]
[1726520052686,4.39108,2277.4,2277.0,4.39171]
[1726520052852,4.39192,2277.0,2276.7,0.0377799]
[1726520053143,4.39201,2276.9,2276.7,0.0377799]
[1726520053313,6.72415,2277.0,2276.7,0.0377799]
[1726520053516,7.835721,2277.0,2276.7,0.0377799]
[1726520053730,3.443971,2277.0,2276.7,0.0377799]
[1726520053931,7.835721,2277.0,2276.7,0.0377799]
[1726520054423,3.0,2276.9,2276.7,0.0377799]
[1726520054626,7.835851,2277.0,2276.7,0.0377799]
[1726520054627,12.227731,2277.0,2276.7,0.0377799]
[1726520054938,0.7835851,2276.9,2276.7,0.0377799]
[1726520057261,6.82908,2277.2,2276.7,4.4299699]
[1726520057776,6.82908,2277.2,2276.7,0.0377799]
[1726520057777,4.39174,2277.0,2276.7,0.0377799]
[1726520058123,4.39159,2277.1,2276.7,0.0377799]
[1726520058347,4.39159,2277.1,2276.7,4.4300899]
[1726520058517,5.5575538,2277.1,2276.7,4.4300899]
[1726520059015,1.1659638,2277.1,2276.7,4.4300899]
[1726520059446,5.5575238,2277.1,2276.7,4.4300899]
[1726520060871,5.5575238,2277.1,2276.8,0.16076543]
[1726520061376,5.5575238,2277.1,2276.7,4.4300899]
[1726520061670,5.5575238,2277.1,2276.8,0.16076543]
[1726520062166,1.23865238,2277.0,2276.7,0.0377799]
[1726520062469,1.23865238,2277.0,2276.8,0.16076543]
[1726520062871,1.23865238,2277.0,2276.7,4.4300699]
[1726520063058,4.39156,2277.1,2276.9,0.16063932]
[1726520063261,4.39156,2277.1,2276.8,0.16076543]
[1726520063474,0.57168165,2278.0,2277.9,13.17]
[1726520063639,0.45911054,2278.4,2278.3,14.77166]
[1726520063999,4.38731,2279.3,2278.7,4.38846]
[1726520064191,0.438762,2279.1,2278.7,8.35901142]
[1726520064334,0.438762,2279.1,2278.8,0.15875224]
[1726520064761,0.438762,2279.1,2278.7,4.38836]
[1726520064958,0.438762,2279.1,2278.9,0.15813927]
[1726520065162,0.438762,2279.1,2278.7,4.38836]
[1726520065163,0.438762,2279.1,2278.8,0.15826515]
[1726520065470,0.438762,2279.1,2278.9,0.15813927]
[1726520065681,4.38731,2279.3,2278.9,0.15813927]
[1726520065971,4.38731,2279.3,2278.6,4.93847]
[1726520066182,4.38731,2279.3,2279.0,0.15801339]
[1726520066474,4.38731,2279.3,2278.7,0.08775958]
[1726520066475,4.38731,2279.3,2279.1,0.15788753]
[1726520066673,0.68861899,2279.2,2279.1,0.15788753]
[1726520066840,0.68861899,2279.2,2278.7,4.38845]
[1726520067035,4.38731,2279.3,2278.8,0.15826515]
[1726520067237,4.38731,2279.3,2278.7,4.38836]
[1726520067436,4.38731,2279.3,2278.8,0.15826515]
[1726520067637,2.4988799,2279.4,2278.9,4.388]
[1726520067838,3.0,2279.3,2279.0,0.15801339]
[1726520068079,3.0,2279.3,2278.8,8.77627]
[1726520068282,3.0,2279.3,2279.1,0.15740578]
[1726520068498,3.0,2279.3,2278.8,4.38809]
[1726520068781,3.0,2279.3,2279.2,0.15727993]
[1726520068936,4.42730399,2279.3,2278.8,4.38809]
[1726520069138,4.42730399,2279.3,2279.2,0.15727993]
[1726520069377,3.0,2279.3,2278.8,4.38809]
[1726520069561,3.0,2279.3,2279.2,0.15727993]
[1726520069763,3.0,2279.3,2278.9,4.38804]
[1726520069943,9.8860799,2279.4,2279.2,0.15727993]
[1726520070146,11.01338289,2279.4,2278.8,8.77626]
[1726520070354,11.01338289,2279.4,2279.3,0.15715409]
[1726520070560,11.01338289,2279.4,2278.8,8.77628]
[1726520070756,4.38737,2279.3,2278.8,8.77627]
[1726520070970,5.48870829,2279.3,2278.9,0.15765751]
[1726520071177,4.10133829,2279.3,2278.9,0.15765751]
[1726520071675,8.48866829,2279.3,2278.9,0.15765751]
[1726520072398,8.48866829,2279.3,2278.9,4.54572751]
[1726520072788,8.48866829,2279.3,2278.9,0.15765751]
[1726520073597,4.10133829,2279.3,2278.9,4.54570751]
[1726520073899,4.53747482,2279.2,2278.9,0.15765751]
[1726520074973,4.53747482,2279.2,2278.8,4.38822]
[1726520075159,0.89248048,2279.1,2278.8,4.38822]
[1726520075794,0.89248048,2279.1,2278.5,4.38869]
[1726520076013,5.28026048,2279.1,2278.6,4.38857]
[1726520076172,0.54299553,2279.0,2278.7,4.38843]
[1726520076696,0.54299553,2279.0,2278.8,0.14611109]
[1726520077108,0.54299553,2279.0,2278.6,4.38856]
[1726520077276,0.54299553,2279.0,2278.9,0.14598521]
[1726520077476,0.54299553,2279.0,2278.6,4.38856]
[1726520077806,4.93087553,2279.0,2278.6,4.38856]
[1726520078302,4.93087553,2279.0,2278.7,0.14623699]
[1726520078876,0.54299553,2279.0,2278.7,0.14623699]
[1726520079179,4.93100553,2279.0,2278.7,0.14623699]
[1726520079502,4.93100553,2279.0,2278.5,4.38873]
[1726520079503,0.49307755,2278.9,2278.5,4.38873]
[1726520079705,0.49307755,2278.9,2278.8,0.14611109]
[1726520079876,0.49307755,2278.9,2278.5,4.38873]
[1726520080075,0.49307755,2278.9,2278.8,0.14611109]
[1726520080400,0.49307755,2278.9,2278.6,4.3886]
[1726520080614,0.49307755,2278.9,2278.7,0.14623699]
[1726520081762,2.81267755,2278.9,2278.7,0.14623699]
[1726520083655,0.72005875,2278.8,2278.7,0.14623699]
[1726520083929,2.81267755,2278.9,2278.5,4.38877]
[1726520083930,5.3196,2278.9,2278.5,4.38877]
[1726520084097,5.3196,2278.9,2278.7,0.14623699]
[1726520084293,0.970757,2278.8,2278.6,0.14636289]
[1726520084630,0.970757,2278.8,2278.5,4.38875]
[1726520087395,0.970757,2278.8,2278.4,0.55]
[1726520087396,8.359187,2278.8,2278.4,0.55]
[1726520087592,8.359187,2278.8,2278.5,4.38885]
[1726520087593,1.0678447,2278.7,2278.5,4.38885]
[1726520088249,3.970757,2278.8,2278.5,4.38885]
[1726520088395,3.970757,2278.8,2278.6,4.38862]
[1726520088601,3.970757,2278.8,2278.5,4.38885]
[1726520090914,3.970757,2278.8,2278.6,0.14674932]
[1726520091851,8.359027,2278.8,2278.6,0.14674932]
[1726520092049,1.5066797,2278.7,2278.4,4.93899]
[1726520092257,1.5066797,2278.7,2278.5,0.14687034]
[1726520092608,1.5066797,2278.7,2278.5,4.53571034]
[1726520092847,1.5066797,2278.7,2278.5,0.14687034]
[1726520093055,1.5066797,2278.7,2278.5,4.53566034]
[1726520093211,1.5066797,2278.7,2278.5,4.53569034]
[1726520093557,1.5066797,2278.7,2278.5,0.14687034]
[1726520095552,0.88949697,2278.6,2278.5,0.14687034]
[1726520098139,7.38832,2278.8,2278.5,4.53565034]
[1726520098140,3.0,2278.8,2278.5,4.53565034]
[1726520098364,7.38827,2278.8,2278.5,0.14687034]
[1726520100843,6.70775,2278.9,2278.5,4.53561034]
[1726520101046,4.38827,2278.8,2278.5,0.14687034]
[1726520101371,4.38809,2278.9,2278.5,4.62338946]
[1726520101686,9.887957,2278.9,2278.5,4.53562034]
[1726520101872,4.38829,2278.8,2278.5,4.53562034]
[1726520102227,5.499747,2278.9,2278.5,4.53562034]
[1726520102429,5.499747,2278.9,2278.5,8.92437034]
[1726520102734,1.111617,2278.9,2278.5,4.53560034]
[1726520103067,4.38815,2278.9,2278.5,4.53560034]
[1726520103274,4.38815,2278.9,2278.5,4.53559034]
[1726520103447,4.38808,2278.9,2278.6,4.38857]
[1726520103642,4.38808,2278.9,2278.7,0.14643078]
[1726520103848,4.38808,2278.9,2278.5,4.38881]
[1726520104053,4.38808,2278.9,2278.6,0.14655669]
[1726520105622,4.38829,2278.8,2278.6,0.14655669]
[1726520105920,5.499729,2278.9,2278.6,0.14655669]
[1726520106729,4.38812,2278.9,2278.6,0.14655669]
[1726520108198,4.38834,2278.8,2278.6,0.14655669]
[1726520108514,4.38812,2278.9,2278.5,4.38881]
[1726520108826,4.38812,2278.9,2278.6,0.14655669]
[1726520111499,7.4,2279.2,2279.1,4.38769]
[1726520111711,2.71137272,2279.5,2279.1,6.63979]
[1726520112014,6.63951,2279.5,2279.1,6.78561453]
[1726520114148,2.2525,2279.5,2279.2,4.38741]
[1726520114663,2.2525,2279.5,2279.3,0.14535764]
[1726520114837,4.38686,2279.6,2279.3,0.14535764]
[1726520115372,9.84008,2279.7,2279.3,5.08266764]
[1726520115859,4.38674,2279.6,2279.3,0.69535764]
[1726520116025,2.4911799,2279.4,2279.3,0.14535764]
[1726520116225,7.52447303,2279.4,2279.0,4.38773]
[1726520116417,7.52447303,2279.4,2279.1,0.14551643]
[1726520117031,11.91178303,2279.4,2279.1,0.14551643]
[1726520117206,7.52447303,2279.4,2279.0,4.38787]
[1726520117637,7.52449303,2279.4,2279.1,0.14551643]
[1726520118132,3.13736303,2279.4,2279.1,0.14551643]
[1726520118333,2.4911799,2279.4,2279.2,4.38747]
[1726520118523,0.0377799,2279.4,2279.1,4.53307643]
[1726520118723,0.0377799,2279.4,2279.3,0.14526474]
[1726520118955,0.0377799,2279.4,2279.2,0.14545903]
[1726520119246,4.4249299,2279.4,2279.3,0.1453332]
[1726520119454,4.4249299,2279.4,2279.0,6.68591]
[1726520119828,4.4249299,2279.4,2279.1,0.14555066]
[1726520121713,0.0377799,2279.4,2279.1,4.53321066]
[1726520121925,0.0377799,2279.4,2279.1,0.14555066]
[1726520123817,0.0377799,2279.4,2279.2,4.38749]
[1726520124145,0.0377799,2279.4,2279.3,4.53261875]
[1726520124562,0.0377799,2279.4,2279.3,0.14530875]
[1726520124980,0.0377799,2279.4,2279.3,4.53261875]
[1726520125585,0.0377799,2279.4,2279.3,0.14530875]
[1726520127134,4.4248899,2279.4,2279.3,0.14530875]
[1726520127342,5.54438389,2279.4,2279.3,0.14530875]
[1726520127571,5.54438389,2279.4,2279.0,4.38771]
[1726520127781,5.54438389,2279.4,2279.3,0.14496156]
[1726520127989,5.54438389,2279.4,2279.0,4.38788]
[1726520128168,4.38735,2279.3,2278.9,4.38803]
[1726520129145,4.38735,2279.3,2278.9,8.77594]
[1726520130074,4.38777,2279.1,2278.8,2.4251]
[1726520130275,6.77069,2279.2,2278.8,4.93826]
[1726520131257,2.3831,2279.2,2278.9,4.38803]
[1726520131471,2.3831,2279.2,2278.8,4.93826]
[1726520131472,2.3831,2279.2,2278.8,4.93814]
[1726520131677,6.77065,2279.2,2278.8,4.93814]
[1726520131989,6.77065,2279.2,2278.8,4.93813]
[1726520132872,6.7171999,2279.4,2278.9,4.38797]
[1726520133045,6.7171999,2279.4,2279.0,4.38777]
[1726520133452,6.7171999,2279.4,2279.0,8.7755]
[1726520133679,4.4249999,2279.4,2279.0,8.7755]
[1726520134493,0.0377799,2279.4,2279.1,4.38757]
[1726520134787,4.4248999,2279.4,2279.1,4.38757]
[1726520135088,0.0377799,2279.4,2279.1,4.38757]
[1726520135862,0.0377799,2279.4,2279.2,0.1452292]
[1726520136749,4.4249199,2279.4,2279.2,0.1452292]
[1726520137092,4.4249199,2279.4,2279.3,0.14510336]
[1726520137388,4.38732,2279.3,2278.9,4.38802]
[1726520137588,5.53530489,2279.4,2279.3,0.14510336]
[1726520137890,5.53530489,2279.4,2279.0,4.38786]
[1726520138059,5.53530489,2279.4,2279.3,0.14506423]
[1726520138759,5.53530489,2279.4,2279.0,8.77568]
[1726520138960,4.4249199,2279.4,2279.3,0.14506423]
[1726520139160,4.4249199,2279.4,2279.1,4.38768]
[1726520139479,4.4249199,2279.4,2279.2,0.14520473]
[1726520139683,5.53530489,2279.4,2279.0,4.38785]
[1726520139857,1.14816489,2279.4,2279.1,4.38767]
[1726520140055,1.14816489,2279.4,2279.1,0.14533058]
[1726520140056,4.38741,2279.3,2279.1,0.14533058]
[1726520140597,4.38741,2279.3,2279.2,0.14523407]
[1726520140752,4.38741,2279.3,2278.9,4.38802]
[1726520140949,4.38741,2279.3,2279.2,0.14523407]
[1726520141153,4.38741,2279.3,2278.9,4.38802]
[1726520141154,5.49785699,2279.3,2278.9,4.38802]
[1726520141354,4.38741,2279.3,2279.2,0.14523407]
[1726520141584,4.38741,2279.3,2278.9,8.77595]
[1726520141783,4.38741,2279.3,2279.2,0.14523407]
[1726520141983,5.49785699,2279.3,2278.9,4.38793]
[1726520142191,4.38741,2279.3,2279.2,0.14523407]
[1726520142366,4.38741,2279.3,2278.9,4.38793]
[1726520143202,4.38741,2279.3,2279.0,0.14548578]
[1726520143701,4.38769,2279.1,2279.0,0.14548578]
[1726520143903,2.4069,2279.2,2279.0,0.14548578]
[1726520144059,2.4069,2279.2,2278.9,4.38799]
[1726520144260,2.4069,2279.2,2278.8,2.4275]
[1726520144261,2.4069,2279.2,2279.0,0.14550534]
[1726520144570,6.7944,2279.2,2278.8,6.81574]
[1726520144768,6.7944,2279.2,2279.1,0.14542839]
[1726520144967,7.62366293,2279.2,2278.8,6.81574]
[1726520145168,6.7944,2279.2,2279.1,0.14542839]
[1726520145370,6.7944,2279.2,2278.8,6.81574]
[1726520145700,6.7386199,2279.4,2279.1,0.14542839]
[1726520146008,1.11256499,2279.3,2279.2,0.14530254]
[1726520146159,6.7386199,2279.4,2279.2,0.14530254]
[1726520146357,6.7386199,2279.4,2278.9,4.38793]
[1726520146585,4.38731,2279.3,2278.9,4.38793]
[1726520146986,4.38731,2279.3,2278.9,8.77591]
[1726520147257,0.0377799,2279.4,2279.3,16.08653]
[1726520147798,0.0377799,2279.4,2279.3,11.69922]
[1726520148097,0.0377799,2279.4,2279.3,12.8096894]
[1726520148282,0.0377799,2279.4,2279.3,11.69922]
[1726520149155,0.0377799,2279.4,2279.3,0.55]
[1726520149358,0.0377799,2279.4,2279.2,4.38735]
[1726520149597,0.0377799,2279.4,2279.3,4.38731]
[1726520151203,0.0377799,2279.4,2279.3,4.53214931]
[1726520151364,0.0377799,2279.4,2279.3,0.14483931]
[1726520151569,0.0377799,2279.4,2279.1,4.38761]
[1726520151787,0.0377799,2279.4,2279.3,0.14489309]
[1726520151989,0.0377799,2279.4,2279.1,4.38761]
[1726520152184,0.0377799,2279.4,2279.3,0.14489309]
[1726520152364,0.0377799,2279.4,2279.1,4.38761]
[1726520152563,0.0377799,2279.4,2279.3,0.14489309]
[1726520152862,0.0377799,2279.4,2279.1,4.38761]
[1726520153064,0.0377799,2279.4,2279.3,0.14489309]
[1726520153583,0.0377799,2279.4,2279.1,4.38761]
[1726520153789,0.0377799,2279.4,2279.3,0.14489309]
[1726520154009,0.0377799,2279.4,2279.2,0.14501893]
[1726520154166,0.0377799,2279.4,2279.1,4.38761]
[1726520154379,0.0377799,2279.4,2279.3,0.14489309]
[1726520154710,0.0377799,2279.4,2279.1,4.38761]
[1726520154905,0.0377799,2279.4,2279.3,0.14489309]
[1726520155084,0.0377799,2279.4,2279.2,0.14501893]
[1726520155268,0.0377799,2279.4,2279.3,0.14489309]
[1726520155671,0.0377799,2279.4,2279.1,8.77521]
[1726520155977,0.0377799,2279.4,2279.2,0.14501893]
[1726520157309,0.0377799,2279.4,2279.2,6.96093893]
[1726520159701,0.0377799,2279.4,2279.3,4.38731]
[1726520159913,0.0377799,2279.4,2279.2,6.96093893]
[1726520160083,0.0377799,2279.4,2279.3,0.14489309]
[1726520160478,0.0377799,2279.4,2279.2,4.38745]
[1726520160916,0.0377799,2279.4,2279.3,8.91951309]
[1726520161101,0.0377799,2279.4,2279.3,9.46951309]
[1726520161413,0.0377799,2279.4,2279.3,11.93371309]
[1726520161984,0.0377799,2279.4,2279.3,0.14489309]
[1726520162178,2.5216799,2279.4,2279.1,4.38755]
[1726520162415,2.5216799,2279.4,2279.3,0.14496155]
[1726520162593,3.21254389,2279.4,2279.1,4.38755]
[1726520162792,2.5216799,2279.4,2279.3,0.14492733]
[1726520163014,2.5216799,2279.4,2279.2,0.14505317]
[1726520163223,2.5216799,2279.4,2279.3,0.14492733]
[1726520163584,7.62423276,2279.4,2278.7,3.25988941]
[1726520163780,4.38778,2279.1,2278.7,4.3883]
[1726520164012,2.3064,2279.0,2278.7,4.3883]
[1726520164221,2.3064,2279.0,2278.8,4.38819]
[1726520164433,2.3064,2279.2,2278.9,4.38807]
[1726520165563,6.69393,2279.2,2278.8,4.38824]
[1726520165690,6.69393,2279.2,2278.9,0.55]
[1726520166027,6.69394,2279.2,2279.0,0.14054351]
[1726520166188,7.80584399,2279.2,2279.0,0.14054351]
[1726520166727,7.80584399,2279.2,2278.8,4.38824]
[1726520167319,7.80584399,2279.2,2278.9,0.14072294]
[1726520168190,2.3064,2279.2,2278.9,4.52879294]
[1726520170563,6.69399,2279.2,2278.9,0.14072294]
[1726520171437,2.3064,2279.2,2278.9,4.52876294]
[1726520171610,4.3878,2279.1,2278.9,0.14072294]
[1726520171811,4.38782,2279.1,2278.9,0.14072294]
[1726520172042,11.75478999,2279.2,2278.8,4.38823]
[1726520172248,6.69402,2279.2,2279.0,0.14061167]
[1726520172537,7.87327699,2279.2,2278.8,4.38823]
[1726520172739,6.6939,2279.2,2279.1,0.14048581]
[1726520173160,6.6939,2279.2,2278.9,4.38801]
[1726520173446,6.6939,2279.2,2279.1,0.14048581]
[1726520173620,6.6939,2279.2,2278.8,6.79452]
[1726520173820,6.6939,2279.2,2279.1,0.14048581]
[1726520174038,6.6939,2279.2,2278.8,6.79452]
[1726520174353,6.69391,2279.2,2278.7,0.55]
[1726520174641,4.38784,2279.1,2278.8,0.14087804]
[1726520174821,4.38784,2279.1,2278.7,4.93841]
[1726520175019,4.38784,2279.1,2278.9,0.14087385]
[1726520175345,4.38784,2279.1,2278.7,4.93841]
[1726520175519,4.38784,2279.1,2279.0,0.14074798]
[1726520175715,5.60305506,2279.1,2279.0,0.14074798]
[1726520175947,5.60290506,2279.1,2279.0,0.14074798]
[1726520176167,5.60290506,2279.1,2278.8,4.38826]
[1726520176371,4.38769,2279.1,2279.0,0.14074798]
[1726520176709,4.38769,2279.1,2279.0,0.14079181]
[1726520177312,2.3064,2279.2,2278.9,4.38806]
[1726520177505,4.4249299,2279.4,2278.9,4.38806]
[1726520177506,4.38732,2279.3,2278.9,4.38806]
[1726520177756,4.38732,2279.3,2279.0,0.14079181]
[1726520179016,4.38739,2279.3,2279.0,0.14079181]
[1726520180017,4.38739,2279.3,2279.0,2.61949181]
[1726520180419,4.26855687,2279.3,2279.0,2.61949181]
[1726520181806,2.5130799,2279.4,2279.0,0.14079181]
[1726520182102,6.66404,2279.2,2278.8,4.38826]
[1726520182709,4.3877,2279.1,2278.9,0.14091768]
[1726520183117,5.492851,2279.1,2278.9,0.14091768]
[1726520183413,4.3877,2279.1,2278.9,0.14091768]
[1726520183579,4.3877,2279.1,2279.0,0.14074798]
[1726520183763,4.3877,2279.1,2278.7,4.38846]
[1726520183960,4.3877,2279.1,2278.8,0.14099974]
[1726520184159,4.3877,2279.1,2278.7,4.38846]
[1726520184434,4.3877,2279.1,2278.8,0.14099974]
[1726520184611,4.3877,2279.1,2278.7,4.38846]
[1726520184910,4.38788,2279.0,2278.9,0.14087385]
[1726520185078,4.38788,2279.0,2278.8,0.14099974]
[1726520185399,4.38788,2279.0,2278.9,0.14087385]
[1726520185563,4.38788,2279.0,2278.6,6.8468]
[1726520185766,4.38788,2279.0,2278.7,0.14112563]
[1726520188524,8.77551,2279.1,2278.7,4.52954563]
[1726520188816,2.2765,2279.2,2278.7,4.61721971]
[1726520188817,6.66403,2279.2,2278.7,4.61721971]
[1726520189016,6.66403,2279.2,2278.8,4.3882]
[1726520189318,6.66403,2279.2,2278.8,4.52934585]
[1726520189522,4.38779,2279.1,2278.8,0.14114585]
[1726520189825,4.38779,2279.1,2278.8,0.55]
[1726520190010,4.38779,2279.1,2278.9,0.14100049]
[1726520191390,2.2765,2279.2,2278.9,0.14100049]
[1726520191391,9.66404,2279.2,2278.9,0.14100049]
[1726520192618,4.38773,2279.1,2278.9,0.14100049]
[1726520194732,4.38788,2279.0,2278.9,0.14100049]
[1726520194917,15.584471,2279.0,2278.9,0.14100049]
[1726520195119,3.0,2278.9,2278.6,4.38865]
[1726520195872,3.0,2278.9,2278.7,0.14124252]
[1726520196051,7.38809,2278.9,2278.7,0.14124252]
[1726520196354,7.38809,2278.9,2278.6,0.55]
[1726520196670,7.38809,2278.9,2278.8,0.14111663]
[1726520196850,7.38809,2278.9,2278.6,0.55]
[1726520197052,7.38809,2278.9,2278.8,0.14111663]
[1726520197626,7.38809,2278.9,2278.6,0.55]
[1726520197859,7.38809,2278.9,2278.8,0.14111663]
[1726520198464,7.38809,2278.9,2278.6,0.55]
[1726520198679,1.83470777,2279.1,2278.8,0.14111663]
[1726520198680,4.38784,2279.1,2278.8,0.14111663]
[1726520198966,4.38766,2279.2,2278.8,4.3882]
[1726520199261,4.38771,2279.1,2278.9,0.14099075]
[1726520200264,4.38752,2279.2,2278.9,0.14099075]
[1726520200857,6.68557,2279.3,2278.9,0.14099075]
[1726520201064,9.7721499,2279.4,2278.9,0.14099075]
[1726520201263,4.38741,2279.3,2278.9,4.38795]
[1726520201474,4.38741,2279.3,2279.0,0.14091844]
[1726520203685,9.7721499,2279.4,2279.0,4.52871844]
[1726520203974,4.38765,2279.2,2279.0,0.14091844]
[1726520204358,4.38765,2279.2,2278.8,4.38826]
[1726520204843,4.38765,2279.2,2278.9,0.14104431]
[1726520205044,4.38765,2279.2,2278.9,4.52909431]
[1726520205279,4.38734,2279.3,2278.9,4.52909431]
[1726520205846,6.83198,2279.2,2278.9,0.14104431]
[1726520206048,2.4444,2279.2,2278.9,4.52899431]
[1726520206279,2.4444,2279.2,2278.9,4.38795]
[1726520206454,2.4444,2279.2,2279.0,0.14091844]
[1726520209282,2.4444,2279.2,2278.9,4.38803]
[1726520209478,2.4444,2279.2,2279.1,0.14079258]
[1726520209641,2.4444,2279.2,2279.0,0.14091844]
[1726520209841,2.4444,2279.2,2279.1,0.14079258]
[1726520210054,2.4444,2279.2,2278.9,4.38803]
[1726520210250,2.4444,2279.2,2279.1,0.14074875]
[1726520210487,7.4249699,2279.4,2279.0,6.75671]
[1726520210488,7.4250199,2279.4,2279.0,6.75671]
[1726520210644,7.4250199,2279.4,2279.1,0.14074875]
[1726520210850,4.38731,2279.3,2279.1,0.14074875]
[1726520211482,7.4250199,2279.4,2279.1,0.14074875]
[1726520211483,11.8122899,2279.4,2279.1,0.14074875]
[1726520211794,0.0377799,2279.4,2279.1,4.52841875]
[1726520211993,4.4249099,2279.4,2279.1,0.14074875]
[1726520213568,4.38732,2279.3,2279.1,0.14074875]
[1726520213786,4.4249099,2279.4,2279.1,0.14074875]
[1726520213984,5.28483167,2279.4,2279.1,0.14074875]
[1726520215172,9.67203167,2279.4,2279.1,0.14074875]
[1726520215368,5.28483167,2279.4,2279.1,0.14074875]
[1726520216212,4.38748,2279.3,2279.1,0.14074875]
[1726520216400,9.67211167,2279.4,2279.1,0.14074875]
[1726520216790,5.28486167,2279.4,2279.1,0.14074875]
[1726520217184,9.67215167,2279.4,2279.1,0.14074875]
[1726520217488,5.28489167,2279.4,2279.1,0.14074875]
[1726520219312,0.89770167,2279.4,2279.1,0.14074875]
[1726520219615,4.4249699,2279.4,2279.0,4.38788]
[1726520219813,4.4249699,2279.4,2279.2,0.14058881]
[1726520220016,4.4249699,2279.4,2279.1,0.14071466]
[1726520220216,4.4249699,2279.4,2279.0,4.38788]
[1726520220217,4.4249699,2279.4,2279.3,0.14046297]
[1726520220412,4.4249699,2279.4,2279.2,0.14058881]
[1726520220618,4.4249699,2279.4,2279.0,4.38788]
[1726520220778,4.4249699,2279.4,2279.3,0.14046297]
[1726520221117,4.4249699,2279.4,2279.0,4.38788]
[1726520221574,8.8122499,2279.4,2279.1,0.14054423]
[1726520221778,4.38732,2279.3,2279.1,0.14054423]
[1726520225322,4.38732,2279.3,2278.9,4.38798]
[1726520225521,4.38732,2279.3,2279.2,0.14043299]
[1726520225680,4.38732,2279.3,2278.9,4.38798]
[1726520225883,4.38732,2279.3,2279.2,0.14043299]
[1726520226114,4.38732,2279.3,2278.9,4.38798]
[1726520226420,8.8122599,2279.4,2279.0,4.38786]
[1726520226608,8.8122599,2279.4,2279.0,4.5285447]
[1726520227104,4.38733,2279.3,2279.0,0.1406847]
[1726520227510,6.22239777,2279.1,2279.0,0.1406847]
[1726520227682,4.38769,2279.1,2279.0,0.1406847]
[1726520227881,4.38769,2279.1,2278.7,5.30715941]
[1726520228083,4.38769,2279.1,2279.0,0.1406847]
[1726520228319,4.38769,2279.1,2278.7,5.30715941]
[1726520228518,4.38769,2279.1,2279.0,0.1406847]
[1726520228718,4.38769,2279.1,2278.7,5.30715941]
[1726520228919,4.38769,2279.1,2279.0,0.1406847]
[1726520229115,4.38769,2279.1,2278.7,5.30715941]
[1726520229321,4.38769,2279.1,2279.0,0.1406847]
[1726520229633,4.38769,2279.1,2278.7,5.30715941]
[1726520230006,4.38769,2279.1,2278.8,0.14093646]
[1726520230197,4.38769,2279.1,2278.7,5.30715941]
[1726520230399,4.38769,2279.1,2278.8,0.14093646]
[1726520230732,4.38769,2279.1,2278.7,4.38837]
[1726520230934,4.38769,2279.1,2278.9,0.14081057]
[1726520231108,4.38769,2279.1,2278.8,0.14093646]
[1726520231303,4.38769,2279.1,2279.0,0.1406847]
[1726520231517,4.38769,2279.1,2278.9,0.14081057]
[1726520231700,4.38769,2279.1,2279.0,0.1406847]
[1726520232038,4.38769,2279.1,2278.7,4.38837]
[1726520232201,4.38769,2279.1,2279.0,0.1406847]
[1726520232400,4.38769,2279.1,2278.7,4.38837]
[1726520232636,4.38769,2279.1,2278.8,0.14093646]
[1726520232833,4.38801,2279.0,2278.6,2.3197]
[1726520232996,4.38801,2279.0,2278.9,0.14081057]
[1726520233197,4.38801,2279.0,2278.6,6.70833]
[1726520233527,4.38801,2279.0,2278.7,0.14106235]
[1726520236524,2.4178,2278.9,2278.7,0.14106235]
[1726520239627,2.4178,2278.9,2278.5,6.69168]
[1726520239628,6.80598,2278.9,2278.5,7.61060941]
[1726520239953,6.80598,2278.9,2278.8,0.1411702]
[1726520240141,6.80598,2278.9,2278.5,6.69182]
[1726520240347,6.80598,2278.9,2278.8,0.1411702]
[1726520240540,6.80598,2278.9,2278.5,6.69182]
[1726520240742,6.80598,2278.9,2278.8,0.1411702]
[1726520240956,6.80598,2278.9,2278.5,6.69182]
[1726520241123,6.80598,2278.9,2278.8,0.1411702]
[1726520241319,6.80598,2278.9,2278.5,6.69182]
[1726520241519,6.80598,2278.9,2278.8,0.1411702]
[1726520241761,6.80598,2278.9,2278.5,11.0805]
[1726520242259,6.80598,2278.9,2278.6,0.141422]
[1726520246657,6.80598,2278.9,2278.6,4.530072]
[1726520246955,2.4178,2278.9,2278.6,4.530072]
[1726520249961,6.80588,2278.9,2278.6,4.530072]
[1726520251834,2.4178,2278.9,2278.6,4.530072]
[1726520253565,6.80589,2278.9,2278.6,4.530072]
[1726520256822,2.4178,2278.9,2278.6,4.530072]
[1726520260446,6.80589,2278.9,2278.6,4.530072]
[1726520263057,6.80588,2278.9,2278.6,4.530072]
[1726520265266,8.64058777,2278.9,2278.6,0.141422]
[1726520265435,9.32117577,2278.9,2278.6,0.141422]
[1726520265636,7.486468,2278.9,2278.6,0.141422]